[Event "Titled Tuesday Blitz April 12 Late 2022"]
[White "Harish, Neeraj"]
[Black "Novikova, Galina"]
[WhiteFideId "30958130"]
[BlackFideId "4157095"]
[WhiteElo "1574"]
[BlackElo "1863"]
[Result "1-0"]
[Round "07"]
[TimeControl "180+1"]
[Date "2022.04.13"]
[WhiteClock "0:00:19"]
[BlackClock "0:01:59"]

1. e4 {[%clk 0:03:00]}  e6 {[%clk 0:02:59]} 2. d4 {[%clk 0:03:00]}  d5 {[%clk 0:03:00]} 3. Nc3 {[%clk 0:02:59]}  Bb4 {[%clk 0:02:57]} 4. e5 {[%clk 0:02:58]}  c5 {[%clk 0:02:56]} 5. a3 {[%clk 0:02:59]}  Bxc3+ {[%clk 0:02:56]} 6. bxc3 {[%clk 0:02:59]}  Ne7 {[%clk 0:02:57]} 7. h4 {[%clk 0:02:58]}  Nbc6 {[%clk 0:02:55]} 8. h5 {[%clk 0:02:55]}  h6 {[%clk 0:02:56]} 9. Qg4 {[%clk 0:02:53]}  Kf8 {[%clk 0:02:56]} 10. Nf3 {[%clk 0:02:50]}  Qa5 {[%clk 0:02:56]} 11. Bd2 {[%clk 0:02:46]}  Qa4 {[%clk 0:02:56]} 12. Rh3 {[%clk 0:02:33]}  b6 {[%clk 0:02:55]} 13. Rg3 {[%clk 0:02:31]}  Nf5 {[%clk 0:02:55]} 14. Rh3 {[%clk 0:02:16]}  cxd4 {[%clk 0:02:56]} 15. Bd3 {[%clk 0:02:13]}  dxc3 {[%clk 0:02:52]} 16. Qxa4 {[%clk 0:02:09]}  cxd2+ {[%clk 0:02:53]} 17. Kxd2 {[%clk 0:02:08]}  Bd7 {[%clk 0:02:54]} 18. Bxf5 {[%clk 0:02:00]}  exf5 {[%clk 0:02:55]} 19. Nd4 {[%clk 0:02:00]}  Nxe5 {[%clk 0:02:53]} 20. Qb3 {[%clk 0:02:00]}  Nc4+ {[%clk 0:02:48]} 21. Kc1 {[%clk 0:01:58]}  Rc8 {[%clk 0:02:47]} 22. Rf3 {[%clk 0:01:55]}  Kg8 {[%clk 0:02:45]} 23. Nxf5 {[%clk 0:01:54]}  Kh7 {[%clk 0:02:45]} 24. Qc3 {[%clk 0:01:47]}  f6 {[%clk 0:02:39]} 25. Nxg7 {[%clk 0:01:31]}  Ne5 {[%clk 0:02:34]} 26. Qd2 {[%clk 0:01:25]}  Kxg7 {[%clk 0:02:33]} 27. Qf4 {[%clk 0:01:05]}  Nxf3 {[%clk 0:02:32]} 28. Qxf3 {[%clk 0:00:59]}  Rc6 {[%clk 0:02:24]} 29. Ra2 {[%clk 0:00:51]}  Be6 {[%clk 0:02:20]} 30. Rb2 {[%clk 0:00:47]}  Rhc8 {[%clk 0:02:19]} 31. Qg3+ {[%clk 0:00:45]}  Kf7 {[%clk 0:02:19]} 32. Qg6+ {[%clk 0:00:45]}  Ke7 {[%clk 0:02:20]} 33. Qg7+ {[%clk 0:00:42]}  Kd6 {[%clk 0:02:18]} 34. Qxf6 {[%clk 0:00:41]}  Kc7 {[%clk 0:02:14]} 35. Qe7+ {[%clk 0:00:40]}  Kb8 {[%clk 0:02:15]} 36. f4 {[%clk 0:00:30]}  Bf5 {[%clk 0:02:13]} 37. Qe5+ {[%clk 0:00:29]}  Kb7 {[%clk 0:02:12]} 38. Qxf5 {[%clk 0:00:29]}  Rc5 {[%clk 0:02:11]} 39. Qg6 {[%clk 0:00:27]}  d4 {[%clk 0:02:10]} 40. Kd2 {[%clk 0:00:20]}  Rc3 {[%clk 0:02:07]} 41. Qxh6 {[%clk 0:00:20]}  Rg3 {[%clk 0:02:07]} 42. Qh7+ {[%clk 0:00:19]}  Ka6 {[%clk 0:02:06]} 43. h6 {[%clk 0:00:17]}  Rxg2+ {[%clk 0:02:06]} 44. Kd3 {[%clk 0:00:17]}  Rc3+ {[%clk 0:02:02]} 45. Kxd4 {[%clk 0:00:17]}  Rxa3 {[%clk 0:02:03]} 46. Qg7 {[%clk 0:00:16]}  Rxg7 {[%clk 0:02:00]} 47. hxg7 {[%clk 0:00:17]}  Rg3 {[%clk 0:02:01]} 48. f5 {[%clk 0:00:16]}  Rxg7 {[%clk 0:02:01]} 49. Ke5 {[%clk 0:00:17]}  Rg1 {[%clk 0:02:00]} 50. f6 {[%clk 0:00:17]}  Rf1 {[%clk 0:02:01]} 51. Ke6 {[%clk 0:00:17]}  Ka5 {[%clk 0:02:02]} 52. f7 {[%clk 0:00:18]}  Ka4 {[%clk 0:02:02]} 53. Ke7 {[%clk 0:00:18]}  b5 {[%clk 0:01:58]} 54. f8=Q {[%clk 0:00:18]}  Rxf8 {[%clk 0:01:58]} 55. Kxf8 {[%clk 0:00:19]}  a5 {[%clk 0:01:59]} 56. Ke7 {[%clk 0:00:19]}  b4 {[%clk 0:01:59]} 57. Kd6 {[%clk 0:00:19]}  Ka3 {[%clk 0:02:00]} 58. Rb3+ {[%clk 0:00:19]}  Ka2 {[%clk 0:02:00]} 59. Kc5 {[%clk 0:00:20]}  Ka1 {[%clk 0:01:59]} 60. Kb5 {[%clk 0:00:19]} 1-0


[Site "https://www.chess.com"]

[Event "Titled Tuesday Blitz April 12 Late 2022"]
[White "Horcajuelo Rocamora, Martin"]
[Black "Senthilkumar, Pranav"]
[WhiteFideId "24573027"]
[BlackFideId "2083477"]
[WhiteElo "1822"]
[BlackElo "2378"]
[Result "0-1"]
[Round "07"]
[TimeControl "180+1"]
[Date "2022.04.13"]
[WhiteClock "0:00:03"]
[BlackClock "0:00:15"]

1. e4 {[%clk 0:03:00]}  e5 {[%clk 0:02:59]} 2. Nf3 {[%clk 0:03:00]}  Nc6 {[%clk 0:02:59]} 3. Bb5 {[%clk 0:03:00]}  a6 {[%clk 0:02:59]} 4. Ba4 {[%clk 0:02:59]}  Nf6 {[%clk 0:02:59]} 5. d3 {[%clk 0:03:00]}  b5 {[%clk 0:02:59]} 6. Bb3 {[%clk 0:03:00]}  d6 {[%clk 0:03:00]} 7. c3 {[%clk 0:03:00]}  Be7 {[%clk 0:03:00]} 8. O-O {[%clk 0:03:01]}  Bb7 {[%clk 0:02:59]} 9. Re1 {[%clk 0:03:01]}  O-O {[%clk 0:03:00]} 10. Nbd2 {[%clk 0:02:59]}  Nb8 {[%clk 0:03:00]} 11. Nf1 {[%clk 0:02:59]}  Nbd7 {[%clk 0:03:01]} 12. Ng3 {[%clk 0:02:59]}  Re8 {[%clk 0:03:01]} 13. a4 {[%clk 0:02:58]}  c5 {[%clk 0:03:01]} 14. h3 {[%clk 0:02:55]}  Bf8 {[%clk 0:03:01]} 15. Be3 {[%clk 0:02:53]}  Nb6 {[%clk 0:03:00]} 16. axb5 {[%clk 0:02:50]}  axb5 {[%clk 0:03:00]} 17. Qe2 {[%clk 0:02:50]}  Rxa1 {[%clk 0:02:58]} 18. Rxa1 {[%clk 0:02:45]}  Qc7 {[%clk 0:02:59]} 19. Nf5 {[%clk 0:02:44]}  d5 {[%clk 0:02:55]} 20. exd5 {[%clk 0:02:39]}  Nbxd5 {[%clk 0:02:54]} 21. Ng5 {[%clk 0:02:30]}  h6 {[%clk 0:02:47]} 22. Ne4 {[%clk 0:02:30]}  Nxe4 {[%clk 0:02:41]} 23. dxe4 {[%clk 0:02:30]}  Nf6 {[%clk 0:02:37]} 24. f3 {[%clk 0:02:24]}  c4 {[%clk 0:02:37]} 25. Bc2 {[%clk 0:02:23]}  Nd7 {[%clk 0:02:36]} 26. Qf2 {[%clk 0:02:22]}  Nc5 {[%clk 0:02:33]} 27. Qg3 {[%clk 0:02:18]}  Kh8 {[%clk 0:02:33]} 28. Kh1 {[%clk 0:02:01]}  Rd8 {[%clk 0:02:31]} 29. Rf1 {[%clk 0:01:41]}  Nd3 {[%clk 0:02:31]} 30. Qh4 {[%clk 0:01:22]}  f6 {[%clk 0:02:11]} 31. Rd1 {[%clk 0:01:19]}  Kh7 {[%clk 0:02:02]} 32. Kh2 {[%clk 0:00:56]}  Bc8 {[%clk 0:01:52]} 33. Ng3 {[%clk 0:00:43]}  Nxb2 {[%clk 0:01:44]} 34. Rb1 {[%clk 0:00:43]}  Na4 {[%clk 0:01:44]} 35. Rxb5 {[%clk 0:00:40]}  Nxc3 {[%clk 0:01:43]} 36. Rb2 {[%clk 0:00:37]}  Bc5 {[%clk 0:01:34]} 37. Bxc5 {[%clk 0:00:30]}  Qxc5 {[%clk 0:01:35]} 38. Nh5 {[%clk 0:00:30]}  Ne2 {[%clk 0:01:27]} 39. Qe1 {[%clk 0:00:26]}  Nd4 {[%clk 0:01:15]} 40. Qg3 {[%clk 0:00:24]}  Qc7 {[%clk 0:01:08]} 41. Ba4 {[%clk 0:00:22]}  c3 {[%clk 0:01:04]} 42. Rb1 {[%clk 0:00:22]}  c2 {[%clk 0:00:57]} 43. Rc1 {[%clk 0:00:22]}  Ne2 {[%clk 0:00:53]} 44. Rxc2 {[%clk 0:00:11]}  Nxg3 {[%clk 0:00:39]} 45. Nxf6+ {[%clk 0:00:10]}  Kg6 {[%clk 0:00:38]} 46. Rxc7 {[%clk 0:00:10]}  Nf1+ {[%clk 0:00:37]} 47. Kg1 {[%clk 0:00:09]}  Ng3 {[%clk 0:00:31]} 48. Nd5 {[%clk 0:00:10]}  Ne2+ {[%clk 0:00:30]} 49. Kf2 {[%clk 0:00:10]}  Nd4 {[%clk 0:00:31]} 50. Bd1 {[%clk 0:00:08]}  Be6 {[%clk 0:00:30]} 51. Ne7+ {[%clk 0:00:05]}  Kh7 {[%clk 0:00:29]} 52. Nc6 {[%clk 0:00:06]}  Nxc6 {[%clk 0:00:26]} 53. Rxc6 {[%clk 0:00:05]}  Bxh3 {[%clk 0:00:23]} 54. gxh3 {[%clk 0:00:04]}  Rxd1 {[%clk 0:00:23]} 55. Re6 {[%clk 0:00:05]}  Rd2+ {[%clk 0:00:22]} 56. Kg3 {[%clk 0:00:05]}  Kg8 {[%clk 0:00:21]} 57. Rxe5 {[%clk 0:00:05]}  Kf7 {[%clk 0:00:21]} 58. Rf5+ {[%clk 0:00:05]}  Ke6 {[%clk 0:00:21]} 59. Ra5 {[%clk 0:00:06]}  Rd1 {[%clk 0:00:21]} 60. Kf4 {[%clk 0:00:06]}  Rh1 {[%clk 0:00:21]} 61. Ra6+ {[%clk 0:00:06]}  Ke7 {[%clk 0:00:21]} 62. Kg4 {[%clk 0:00:06]}  Rg1+ {[%clk 0:00:21]} 63. Kf4 {[%clk 0:00:06]}  g5+ {[%clk 0:00:20]} 64. Kf5 {[%clk 0:00:06]}  Rg3 {[%clk 0:00:20]} 65. Ra7+ {[%clk 0:00:04]}  Kd8 {[%clk 0:00:20]} 66. Kg6 {[%clk 0:00:03]}  Rxh3 {[%clk 0:00:20]} 67. Rf7 {[%clk 0:00:03]}  Ke8 {[%clk 0:00:18]} 68. e5 {[%clk 0:00:03]}  h5 {[%clk 0:00:16]} 69. Kxg5 {[%clk 0:00:03]}  Kxf7 {[%clk 0:00:16]} 70. f4 {[%clk 0:00:03]}  Rh1 {[%clk 0:00:15]} 71. f5 {[%clk 0:00:03]}  h4 {[%clk 0:00:15]} 0-1


[Site "https://www.chess.com"]

[Event "Titled Tuesday Blitz April 12 Late 2022"]
[White "Ibarra Jerez, Jose Carlos"]
[Black "Nazaretyan, Tigran"]
[WhiteFideId "2226332"]
[BlackFideId "24162345"]
[WhiteElo "2626"]
[BlackElo "2225"]
[Result "1-0"]
[Round "07"]
[TimeControl "180+1"]
[Date "2022.04.12"]
[WhiteClock "0:00:34"]
[BlackClock "0:00:12"]

1. e4 {[%clk 0:03:00]}  c5 {[%clk 0:02:59]} 2. Nf3 {[%clk 0:02:59]}  d6 {[%clk 0:02:58]} 3. c3 {[%clk 0:02:54]}  Nf6 {[%clk 0:02:58]} 4. Be2 {[%clk 0:02:54]}  Nc6 {[%clk 0:02:56]} 5. d4 {[%clk 0:02:53]}  d5 {[%clk 0:02:49]} 6. exd5 {[%clk 0:02:47]}  Nxd5 {[%clk 0:02:48]} 7. c4 {[%clk 0:02:45]}  Nf6 {[%clk 0:02:43]} 8. d5 {[%clk 0:02:44]}  Nb4 {[%clk 0:02:38]} 9. a3 {[%clk 0:02:40]}  Na6 {[%clk 0:02:38]} 10. Nc3 {[%clk 0:02:39]}  e6 {[%clk 0:02:38]} 11. O-O {[%clk 0:02:38]}  Be7 {[%clk 0:02:36]} 12. Bf4 {[%clk 0:02:36]}  exd5 {[%clk 0:02:34]} 13. cxd5 {[%clk 0:02:34]}  Bd6 {[%clk 0:02:12]} 14. Bb5+ {[%clk 0:02:28]}  Kf8 {[%clk 0:02:12]} 15. Ne5 {[%clk 0:02:05]}  Nc7 {[%clk 0:02:08]} 16. Bc4 {[%clk 0:02:03]}  h6 {[%clk 0:01:48]} 17. Re1 {[%clk 0:01:56]}  Bf5 {[%clk 0:01:47]} 18. Qf3 {[%clk 0:01:50]}  Nce8 {[%clk 0:01:27]} 19. Nb5 {[%clk 0:01:44]}  a6 {[%clk 0:01:24]} 20. Nxd6 {[%clk 0:01:41]}  Nxd6 {[%clk 0:01:25]} 21. Ba2 {[%clk 0:01:40]}  Rc8 {[%clk 0:01:21]} 22. Rad1 {[%clk 0:01:38]}  c4 {[%clk 0:01:21]} 23. Bd2 {[%clk 0:01:18]}  Bc2 {[%clk 0:01:16]} 24. Rc1 {[%clk 0:01:15]}  Be4 {[%clk 0:01:16]} 25. Qh3 {[%clk 0:01:15]}  Bxd5 {[%clk 0:01:15]} 26. Bb4 {[%clk 0:01:12]}  Kg8 {[%clk 0:01:13]} 27. Bxd6 {[%clk 0:01:11]}  Be6 {[%clk 0:01:11]} 28. Nxf7 {[%clk 0:01:00]}  Bxh3 {[%clk 0:01:05]} 29. Nxd8 {[%clk 0:01:00]}  Rxd8 {[%clk 0:01:03]} 30. Bxc4+ {[%clk 0:00:55]}  Kh7 {[%clk 0:00:57]} 31. Be7 {[%clk 0:00:56]}  Bf5 {[%clk 0:00:49]} 32. Bxd8 {[%clk 0:00:56]}  Rxd8 {[%clk 0:00:50]} 33. Rcd1 {[%clk 0:00:54]}  b5 {[%clk 0:00:50]} 34. Rxd8 {[%clk 0:00:53]}  bxc4 {[%clk 0:00:50]} 35. Re7 {[%clk 0:00:50]}  a5 {[%clk 0:00:41]} 36. Rd6 {[%clk 0:00:48]}  Ne4 {[%clk 0:00:39]} 37. Rxe4 {[%clk 0:00:45]}  Bxe4 {[%clk 0:00:39]} 38. Ra6 {[%clk 0:00:46]}  Kg8 {[%clk 0:00:30]} 39. Rxa5 {[%clk 0:00:46]}  Kf7 {[%clk 0:00:31]} 40. f3 {[%clk 0:00:46]}  Bc2 {[%clk 0:00:30]} 41. Rc5 {[%clk 0:00:45]}  Bb3 {[%clk 0:00:30]} 42. a4 {[%clk 0:00:45]}  Ke6 {[%clk 0:00:30]} 43. a5 {[%clk 0:00:46]}  Kd6 {[%clk 0:00:31]} 44. Rb5 {[%clk 0:00:40]}  Kc6 {[%clk 0:00:30]} 45. Rb6+ {[%clk 0:00:39]}  Kc5 {[%clk 0:00:29]} 46. Kf2 {[%clk 0:00:39]}  Bc2 {[%clk 0:00:27]} 47. Rb8 {[%clk 0:00:37]}  Kc6 {[%clk 0:00:23]} 48. a6 {[%clk 0:00:37]}  c3 {[%clk 0:00:23]} 49. bxc3 {[%clk 0:00:37]}  Bd3 {[%clk 0:00:23]} 50. a7 {[%clk 0:00:37]}  Kc7 {[%clk 0:00:23]} 51. a8=Q {[%clk 0:00:38]}  Be4 {[%clk 0:00:24]} 52. Qa7+ {[%clk 0:00:38]}  Kd6 {[%clk 0:00:12]} 53. fxe4 {[%clk 0:00:34]} 1-0


[Site "https://www.chess.com"]

[Event "Titled Tuesday Blitz April 12 Late 2022"]
[White "Indjic, Aleksandar"]
[Black "Kosteniuk, Alexandra"]
[WhiteFideId "911925"]
[BlackFideId "4128125"]
[WhiteElo "2616"]
[BlackElo "2469"]
[Result "1-0"]
[Round "07"]
[TimeControl "180+1"]
[Date "2022.04.12"]
[WhiteClock "0:01:01"]
[BlackClock "0:00:23"]

1. e4 {[%clk 0:02:55]}  e5 {[%clk 0:03:00]} 2. Nf3 {[%clk 0:02:52]}  Nc6 {[%clk 0:03:00]} 3. Bb5 {[%clk 0:02:52]}  a6 {[%clk 0:03:00]} 4. Ba4 {[%clk 0:02:50]}  Nf6 {[%clk 0:03:00]} 5. O-O {[%clk 0:02:50]}  Be7 {[%clk 0:03:01]} 6. Bxc6 {[%clk 0:02:47]}  dxc6 {[%clk 0:02:59]} 7. d3 {[%clk 0:02:48]}  Qd6 {[%clk 0:02:55]} 8. Nbd2 {[%clk 0:02:48]}  Be6 {[%clk 0:02:54]} 9. b3 {[%clk 0:02:46]}  Nd7 {[%clk 0:02:51]} 10. a4 {[%clk 0:02:45]}  O-O-O {[%clk 0:02:40]} 11. Nc4 {[%clk 0:02:44]}  Bxc4 {[%clk 0:02:40]} 12. bxc4 {[%clk 0:02:45]}  g5 {[%clk 0:02:26]} 13. Be3 {[%clk 0:02:41]}  g4 {[%clk 0:02:17]} 14. Nd2 {[%clk 0:02:41]}  h5 {[%clk 0:02:13]} 15. Rb1 {[%clk 0:02:40]}  c5 {[%clk 0:02:11]} 16. a5 {[%clk 0:02:35]}  Rdg8 {[%clk 0:02:06]} 17. Rb3 {[%clk 0:02:30]}  g3 {[%clk 0:01:36]} 18. fxg3 {[%clk 0:02:27]}  h4 {[%clk 0:01:35]} 19. g4 {[%clk 0:02:26]}  h3 {[%clk 0:01:35]} 20. g3 {[%clk 0:02:26]}  Qe6 {[%clk 0:01:30]} 21. Rf5 {[%clk 0:02:25]}  Nf6 {[%clk 0:01:25]} 22. g5 {[%clk 0:02:24]}  Nh7 {[%clk 0:01:23]} 23. Nf3 {[%clk 0:02:24]}  Bd6 {[%clk 0:01:20]} 24. Qb1 {[%clk 0:02:22]}  f6 {[%clk 0:01:18]} 25. Rxb7 {[%clk 0:02:19]}  fxg5 {[%clk 0:01:11]} 26. Ra7 {[%clk 0:02:12]}  Rf8 {[%clk 0:01:01]} 27. g4 {[%clk 0:01:44]}  Nf6 {[%clk 0:00:52]} 28. Nxg5 {[%clk 0:01:28]}  Qe7 {[%clk 0:00:52]} 29. Qb7+ {[%clk 0:01:27]}  Kd7 {[%clk 0:00:50]} 30. Rxa6 {[%clk 0:01:27]}  Rb8 {[%clk 0:00:44]} 31. Qc6+ {[%clk 0:01:27]}  Kc8 {[%clk 0:00:42]} 32. Ra8 {[%clk 0:01:25]}  Qe8 {[%clk 0:00:26]} 33. Qa6+ {[%clk 0:01:18]}  Kd7 {[%clk 0:00:26]} 34. Rxb8 {[%clk 0:01:11]}  Qxb8 {[%clk 0:00:27]} 35. Rxf6 {[%clk 0:01:03]}  Qb1+ {[%clk 0:00:27]} 36. Rf1 {[%clk 0:01:03]}  Qxc2 {[%clk 0:00:27]} 37. Rf7+ {[%clk 0:01:03]}  Be7 {[%clk 0:00:23]} 38. Qe6+ {[%clk 0:01:01]} 1-0


[Site "https://www.chess.com"]

[Event "Titled Tuesday Blitz April 12 Late 2022"]
[White "Iskusnyh, Sergei"]
[Black "Romero Ruscalleda, Josep"]
[WhiteFideId "4120027"]
[BlackFideId "2231859"]
[WhiteElo "2492"]
[BlackElo "2323"]
[Result "1-0"]
[Round "07"]
[TimeControl "180+1"]
[Date "2022.04.13"]
[WhiteClock "0:00:47"]
[BlackClock "0:00:06"]

1. d4 {[%clk 0:03:00]}  g6 {[%clk 0:03:00]} 2. c4 {[%clk 0:02:59]}  Bg7 {[%clk 0:03:00]} 3. Nf3 {[%clk 0:03:00]}  d6 {[%clk 0:03:01]} 4. g3 {[%clk 0:03:00]}  Nf6 {[%clk 0:02:59]} 5. Nc3 {[%clk 0:03:00]}  O-O {[%clk 0:02:58]} 6. Bg2 {[%clk 0:03:00]}  Bf5 {[%clk 0:02:56]} 7. O-O {[%clk 0:03:00]}  Qc8 {[%clk 0:02:56]} 8. Re1 {[%clk 0:02:56]}  c5 {[%clk 0:02:51]} 9. e4 {[%clk 0:02:45]}  Bg4 {[%clk 0:02:47]} 10. d5 {[%clk 0:02:45]}  Na6 {[%clk 0:02:30]} 11. Bg5 {[%clk 0:02:41]}  h6 {[%clk 0:02:29]} 12. Be3 {[%clk 0:02:34]}  Kh7 {[%clk 0:02:27]} 13. Qc2 {[%clk 0:02:25]}  Nc7 {[%clk 0:02:17]} 14. e5 {[%clk 0:02:20]}  Nfe8 {[%clk 0:02:04]} 15. Bf4 {[%clk 0:02:04]}  dxe5 {[%clk 0:01:53]} 16. Bxe5 {[%clk 0:01:50]}  Nd6 {[%clk 0:01:47]} 17. Bxg7 {[%clk 0:01:49]}  Kxg7 {[%clk 0:01:47]} 18. b3 {[%clk 0:01:41]}  Re8 {[%clk 0:01:37]} 19. Ne5 {[%clk 0:01:38]}  Bf5 {[%clk 0:01:33]} 20. Qb2 {[%clk 0:01:38]}  Kg8 {[%clk 0:01:31]} 21. Qd2 {[%clk 0:01:20]}  Kh7 {[%clk 0:01:18]} 22. h4 {[%clk 0:01:18]}  f6 {[%clk 0:01:11]} 23. Nf3 {[%clk 0:01:12]}  b5 {[%clk 0:00:53]} 24. cxb5 {[%clk 0:00:56]}  Ncxb5 {[%clk 0:00:52]} 25. Nxb5 {[%clk 0:00:56]}  Nxb5 {[%clk 0:00:52]} 26. Rac1 {[%clk 0:00:57]}  Nd6 {[%clk 0:00:31]} 27. Nd4 {[%clk 0:00:56]}  Qd7 {[%clk 0:00:15]} 28. Nc6 {[%clk 0:00:55]}  e5 {[%clk 0:00:10]} 29. dxe6 {[%clk 0:00:53]}  Rxe6 {[%clk 0:00:08]} 30. Rxe6 {[%clk 0:00:48]}  Bxe6 {[%clk 0:00:06]} 31. Rd1 {[%clk 0:00:47]} 1-0


[Site "https://www.chess.com"]

[Event "Titled Tuesday Blitz April 12 Late 2022"]
[White "Kamsky, Gata"]
[Black "Dubov, Daniil"]
[WhiteFideId "2000024"]
[BlackFideId "24126055"]
[WhiteElo "2645"]
[BlackElo "2791"]
[Result "0-1"]
[Round "07"]
[TimeControl "180+1"]
[Date "2022.04.12"]
[WhiteClock "0:00:01"]
[BlackClock "0:00:04"]

1. e4 {[%clk 0:03:00]}  c5 {[%clk 0:02:58]} 2. Nf3 {[%clk 0:03:00]}  d6 {[%clk 0:02:58]} 3. Nc3 {[%clk 0:02:57]}  Nc6 {[%clk 0:02:56]} 4. Bc4 {[%clk 0:02:55]}  Nf6 {[%clk 0:02:54]} 5. d3 {[%clk 0:02:53]}  e6 {[%clk 0:02:53]} 6. O-O {[%clk 0:02:51]}  Be7 {[%clk 0:02:52]} 7. a3 {[%clk 0:02:51]}  O-O {[%clk 0:02:52]} 8. Ba2 {[%clk 0:02:52]}  a6 {[%clk 0:02:51]} 9. Ne2 {[%clk 0:02:51]}  b5 {[%clk 0:02:47]} 10. Ng3 {[%clk 0:02:51]}  e5 {[%clk 0:02:19]} 11. c3 {[%clk 0:02:46]}  Be6 {[%clk 0:02:15]} 12. Bxe6 {[%clk 0:02:41]}  fxe6 {[%clk 0:02:16]} 13. Re1 {[%clk 0:02:39]}  Rc8 {[%clk 0:02:05]} 14. b4 {[%clk 0:02:29]}  Qd7 {[%clk 0:01:59]} 15. Bd2 {[%clk 0:02:25]}  h6 {[%clk 0:01:53]} 16. Qb3 {[%clk 0:02:23]}  Kh8 {[%clk 0:01:49]} 17. a4 {[%clk 0:02:18]}  cxb4 {[%clk 0:01:40]} 18. axb5 {[%clk 0:02:10]}  axb5 {[%clk 0:01:40]} 19. cxb4 {[%clk 0:02:10]}  Nh7 {[%clk 0:01:40]} 20. Be3 {[%clk 0:02:05]}  d5 {[%clk 0:01:32]} 21. Rec1 {[%clk 0:01:38]}  d4 {[%clk 0:01:17]} 22. Bd2 {[%clk 0:01:37]}  Rxf3 {[%clk 0:01:18]} 23. gxf3 {[%clk 0:01:36]}  Bg5 {[%clk 0:01:18]} 24. Ra2 {[%clk 0:01:29]}  Rf8 {[%clk 0:01:15]} 25. Kg2 {[%clk 0:01:20]}  Ne7 {[%clk 0:01:03]} 26. Bxg5 {[%clk 0:01:17]}  Nxg5 {[%clk 0:01:03]} 27. Qc2 {[%clk 0:01:10]}  Ng6 {[%clk 0:01:00]} 28. Qc7 {[%clk 0:01:08]}  Qxc7 {[%clk 0:00:43]} 29. Rxc7 {[%clk 0:01:07]}  Rxf3 {[%clk 0:00:40]} 30. Ra8+ {[%clk 0:01:02]}  Kh7 {[%clk 0:00:40]} 31. Nh5 {[%clk 0:00:58]}  Nh4+ {[%clk 0:00:30]} 32. Kf1 {[%clk 0:00:57]}  Kg6 {[%clk 0:00:31]} 33. Ng3 {[%clk 0:00:53]}  Nh3 {[%clk 0:00:20]} 34. Ra2 {[%clk 0:00:46]}  Rxd3 {[%clk 0:00:18]} 35. Raa7 {[%clk 0:00:45]}  Kg5 {[%clk 0:00:12]} 36. Rxg7+ {[%clk 0:00:44]}  Ng6 {[%clk 0:00:13]} 37. Raf7 {[%clk 0:00:25]}  Nf4 {[%clk 0:00:11]} 38. Ke1 {[%clk 0:00:21]}  Rb3 {[%clk 0:00:11]} 39. Kd2 {[%clk 0:00:15]}  Rxb4 {[%clk 0:00:09]} 40. h4+ {[%clk 0:00:09]}  Kxh4 {[%clk 0:00:09]} 41. Nf1 {[%clk 0:00:04]}  Rb2+ {[%clk 0:00:08]} 42. Kc1 {[%clk 0:00:04]}  Rxf2 {[%clk 0:00:08]} 43. Nd2 {[%clk 0:00:04]}  b4 {[%clk 0:00:06]} 44. Nc4 {[%clk 0:00:02]}  b3 {[%clk 0:00:05]} 45. Kb1 {[%clk 0:00:02]}  Rf1+ {[%clk 0:00:03]} 46. Kb2 {[%clk 0:00:01]}  Nd3+ {[%clk 0:00:04]} 47. Kxb3 {[%clk 0:00:01]}  Rxf7 {[%clk 0:00:04]} 48. Rxf7 {[%clk 0:00:02]}  Ndf4 {[%clk 0:00:04]} 49. Kc2 {[%clk 0:00:01]}  h5 {[%clk 0:00:04]} 50. Rf6 {[%clk 0:00:01]}  Kg3 {[%clk 0:00:04]} 0-1


[Site "https://www.chess.com"]

[Event "Titled Tuesday Blitz April 12 Late 2022"]
[White "Kazakouski, Valery"]
[Black "Svane, Rasmus"]
[WhiteFideId "13507443"]
[BlackFideId "4657101"]
[WhiteElo "2524"]
[BlackElo "2645"]
[Result "0-1"]
[Round "07"]
[TimeControl "180+1"]
[Date "2022.04.12"]
[WhiteClock "0:00:28"]
[BlackClock "0:00:38"]

1. d4 {[%clk 0:02:43]}  d5 {[%clk 0:02:59]} 2. c4 {[%clk 0:02:43]}  e6 {[%clk 0:03:00]} 3. Nc3 {[%clk 0:02:43]}  a6 {[%clk 0:03:00]} 4. cxd5 {[%clk 0:02:41]}  exd5 {[%clk 0:03:01]} 5. Nf3 {[%clk 0:02:42]}  Nf6 {[%clk 0:03:00]} 6. Bg5 {[%clk 0:02:43]}  Be6 {[%clk 0:03:00]} 7. e3 {[%clk 0:02:43]}  Nbd7 {[%clk 0:03:01]} 8. Bd3 {[%clk 0:02:43]}  Bd6 {[%clk 0:03:01]} 9. O-O {[%clk 0:02:42]}  c6 {[%clk 0:03:01]} 10. a3 {[%clk 0:02:38]}  Qc7 {[%clk 0:03:01]} 11. Qd2 {[%clk 0:02:37]}  Bg4 {[%clk 0:02:59]} 12. h3 {[%clk 0:02:32]}  Bxf3 {[%clk 0:02:51]} 13. gxf3 {[%clk 0:02:32]}  h6 {[%clk 0:02:48]} 14. Bxf6 {[%clk 0:02:27]}  Nxf6 {[%clk 0:02:49]} 15. Rac1 {[%clk 0:02:22]}  Qd7 {[%clk 0:02:45]} 16. Kg2 {[%clk 0:02:20]}  h5 {[%clk 0:02:30]} 17. f4 {[%clk 0:02:17]}  Rg8 {[%clk 0:02:27]} 18. b4 {[%clk 0:02:03]}  g5 {[%clk 0:02:26]} 19. f5 {[%clk 0:02:03]}  g4 {[%clk 0:01:52]} 20. Rg1 {[%clk 0:02:01]}  gxh3+ {[%clk 0:01:50]} 21. Kxh3 {[%clk 0:02:02]}  O-O-O {[%clk 0:01:26]} 22. Qe2 {[%clk 0:01:56]}  Ne4 {[%clk 0:01:02]} 23. Rxg8 {[%clk 0:01:02]}  Rxg8 {[%clk 0:00:49]} 24. Bxe4 {[%clk 0:00:56]}  dxe4 {[%clk 0:00:50]} 25. Qxh5 {[%clk 0:00:55]}  Qe8 {[%clk 0:00:42]} 26. Qe2 {[%clk 0:00:28]}  Rh8+ {[%clk 0:00:38]} 0-1


[Site "https://www.chess.com"]